fUSD/lending_fUSD_20260228
["ID","MTS","AMOUNT","RATE_DAILY","PERIOD"]
[406921758,1772275858738,-500.0,0.00049315,120]
[406921760,1772275858747,-642.91,0.00049315,120]
[406921762,1772275858758,-500.0,0.00049315,120]
[406921764,1772275858767,-500.0,0.00049315,120]
[406921766,1772275858777,-642.91,0.00049315,120]
[406921768,1772275858786,-547.1465739,0.00049315,120]
[406921770,1772275858794,-642.91,0.00049315,120]
[406921772,1772275858803,-642.91,0.00049315,120]
[406921774,1772275858812,-642.91,0.00049315,120]
[406921776,1772275858821,-642.91,0.00049315,120]
[406921777,1772275858830,-642.91,0.00049315,120]
[406921779,1772275858839,-642.91,0.00049315,120]
[406921781,1772275858847,-500.0,0.00049315,120]
[406921783,1772275858856,-596.43204852,0.00049315,120]
[406921785,1772275858865,-500.0,0.00049315,120]
[406921787,1772275858874,-579.24276313,0.00049315,120]
[406921789,1772275858883,-707.7,0.00049315,120]
[406921791,1772275858893,-707.7,0.00049315,120]
[406921793,1772275858902,-707.7,0.00049315,120]
[406921795,1772275858911,-707.7,0.00049315,120]
[406921797,1772275858919,-707.7,0.00049315,120]
[406921799,1772275858928,-707.7,0.00049315,120]
[406921801,1772275858937,-707.7,0.00049315,120]
[406921803,1772275858946,-707.7,0.00049315,120]
[406921805,1772275858955,-707.7,0.00049315,120]
[406921807,1772275858964,-707.7,0.00049315,120]
[406921809,1772275858973,-707.7,0.00049315,120]
[406921811,1772275858982,-707.7,0.00049315,120]
[406921813,1772275858991,-707.7,0.00049315,120]
[406921815,1772275859000,-707.7,0.00049315,120]
[406921817,1772275859009,-707.7,0.00049315,120]
[406921819,1772275859019,-707.7,0.00049315,120]
[406921821,1772275859028,-707.7,0.00049315,120]
[406921823,1772275859037,-707.7,0.00049315,120]
[406921825,1772275859046,-707.7,0.00049315,120]
[406921827,1772275859055,-707.7,0.00049315,120]
[406921829,1772275859064,-707.7,0.00049315,120]
[406921831,1772275859074,-707.7,0.00049315,120]
[406921833,1772275859083,-707.7,0.00049315,120]
[406921835,1772275859091,-707.9213631,0.00049315,120]
[406921837,1772275859100,-1493.18,0.00049315,120]
[406921839,1772275859109,-1493.18,0.00049315,120]
[406921841,1772275859119,-1493.18,0.00049315,120]
[406921843,1772275859128,-1493.18,0.00049315,120]
[406921845,1772275859138,-1493.18,0.00049315,120]
[406921847,1772275859149,-1493.18,0.00049315,120]
[406921849,1772275859158,-1493.18,0.00049315,120]
[406921851,1772275859167,-1493.18,0.00049315,120]
[406921853,1772275859176,-1493.18,0.00049315,120]
[406921855,1772275859185,-1493.18,0.00049315,120]
[406921857,1772275859194,-1493.18,0.00049315,120]
[406921859,1772275859203,-1493.18,0.00049315,120]
[406921861,1772275859212,-1493.18,0.00049315,120]
[406921863,1772275859221,-1493.18,0.00049315,120]
[406921865,1772275859229,-1493.18,0.00049315,120]
[406921867,1772275859238,-1493.18,0.00049315,120]
[406921869,1772275859247,-1493.18,0.00049315,120]
[406921871,1772275859256,-1493.18,0.00049315,120]
[406921873,1772275859266,-1493.18,0.00049315,120]
[406921875,1772275859274,-1493.18,0.00049315,120]
[406921877,1772275859283,-1493.18,0.00049315,120]
[406921879,1772275859292,-1493.18,0.00049315,120]
[406921881,1772275859302,-1493.18,0.00049315,120]
[406921883,1772275859311,-1493.23420878,0.00049315,120]
[406921885,1772275859320,-500.0,0.00049315,120]
[406921887,1772275859329,-500.0,0.00049315,120]
[406921889,1772275859340,-500.0,0.00049315,120]
[406921891,1772275859349,-500.0,0.00049315,120]
[406921893,1772275859358,-500.0,0.00049315,120]
[406921895,1772275859367,-500.0,0.00049315,120]
[406921897,1772275859376,-500.0,0.00049315,120]
[406921899,1772275859385,-500.0,0.00049315,120]
[406921901,1772275859396,-500.0,0.00049315,120]
[406921903,1772275859405,-500.0,0.00049315,120]
[406921905,1772275859413,-500.0,0.00049315,120]
[406921907,1772275859422,-500.0,0.00049315,120]
[406921909,1772275859431,-500.0,0.00049315,120]
[406921911,1772275859441,-450.51739035,0.00049315,120]
[406921913,1772275859450,-500.0,0.00049315,120]
[406921915,1772275859459,-500.0,0.00049315,120]
[406921917,1772275859468,-527.22396853,0.00049315,120]
[406921919,1772275859477,-500.0,0.00049315,120]
[406921921,1772275859486,-500.0,0.00049315,120]
[406921923,1772275859494,-540.43430317,0.00049315,120]
[406921925,1772275859503,-151.5443866,0.00049315,120]
[406921937,1772275859602,-500.0,0.00049315,120]
[406921939,1772275859612,-500.0,0.00049315,120]
[406921941,1772275859622,-500.0,0.00049315,120]
[406921943,1772275859631,-500.0,0.00049315,120]
[406921945,1772275859641,-500.0,0.00049315,120]
[406921946,1772275859650,-500.0,0.00049315,120]
[406921948,1772275859659,-500.0,0.00049315,120]
[406921950,1772275859669,-500.0,0.00049315,120]
[406921952,1772275859678,-500.0,0.00049315,120]
[406921954,1772275859687,-500.0,0.00049315,120]
[406921956,1772275859696,-500.0,0.00049315,120]
[406921958,1772275859706,-500.0,0.00049315,120]
[406921960,1772275859716,-500.0,0.00049315,120]
[406921962,1772275859725,-500.0,0.00049315,120]
[406921964,1772275859734,-500.0,0.00049315,120]
[406921966,1772275859743,-500.0,0.00049315,120]
[406921968,1772275859752,-500.0,0.00049315,120]
[406921970,1772275859761,-335.47518869,0.00049315,120]
[406921972,1772275859771,-1863.94,0.00049315,120]
[406921974,1772275859781,-1863.94,0.00049315,120]
[406921976,1772275859791,-1863.94,0.00049315,120]
[406921978,1772275859800,-1863.94,0.00049315,120]
[406921980,1772275859809,-1863.94,0.00049315,120]
[406921982,1772275859818,-1863.94,0.00049315,120]
[406921984,1772275859827,-1863.94,0.00049315,120]
[406921986,1772275859836,-1863.94,0.00049315,120]
[406921988,1772275859845,-1863.94,0.00049315,120]
[406921990,1772275859854,-1863.94,0.00049315,120]
[406921992,1772275859863,-1863.94,0.00049315,120]
[406921994,1772275859872,-1863.94,0.00049315,120]
[406921996,1772275859881,-1863.94,0.00049315,120]
[406921998,1772275859891,-1863.94,0.00049315,120]
[406922000,1772275859901,-1863.94,0.00049315,120]
[406922002,1772275859911,-1863.94,0.00049315,120]
[406922003,1772275859920,-1863.94,0.00049315,120]
[406922005,1772275859929,-1863.94,0.00049315,120]
[406922007,1772275859939,-1863.94,0.00049315,120]
[406922009,1772275859948,-1863.94,0.00049315,120]
[406922011,1772275859957,-1863.94,0.00049315,120]
[406922013,1772275859967,-1863.94,0.00049315,120]
[406922015,1772275859976,-1863.94,0.00049315,120]
[406922017,1772275859985,-1864.17427328,0.00049315,120]
[406922019,1772275859995,-500.0,0.00049315,120]
[406922021,1772275860004,-507.23430178,0.00049315,120]
[406922023,1772275860013,-151.91925756,0.00049315,120]
[406922025,1772275860022,-500.0,0.00049315,120]
[406922027,1772275860031,-500.0,0.00049315,120]
[406922029,1772275860040,-500.0,0.00049315,120]
[406922031,1772275860049,-500.0,0.00049315,120]
[406922033,1772275860059,-500.0,0.00049315,120]
[406922034,1772275860068,-500.0,0.00049315,120]
[406922036,1772275860077,-500.0,0.00049315,120]
[406922038,1772275860086,-500.0,0.00049315,120]
[406922040,1772275860096,-500.0,0.00049315,120]
[406922042,1772275860105,-500.0,0.00049315,120]
[406922044,1772275860114,-500.0,0.00049315,120]
[406922046,1772275860123,-500.0,0.00049315,120]
[406922048,1772275860132,-500.0,0.00049315,120]
[406922050,1772275860143,-500.0,0.00049315,120]
[406922052,1772275860153,-500.0,0.00049315,120]
[406922054,1772275860162,-500.0,0.00049315,120]
[406922055,1772275860172,-500.0,0.00049315,120]
[406922057,1772275860182,-500.0,0.00049315,120]
[406922059,1772275860192,-500.0,0.00049315,120]
[406922062,1772275860203,-535.29743216,0.00049315,120]
[406922063,1772275860214,-500.0,0.00049315,120]
[406922066,1772275860224,-500.0,0.00049315,120]
[406922068,1772275860234,-500.0,0.00049315,120]
[406922069,1772275860244,-500.0,0.00049315,120]
[406922071,1772275860254,-500.0,0.00049315,120]
[406922073,1772275860263,-500.0,0.00049315,120]
[406922076,1772275860273,-500.0,0.00049315,120]
[406922077,1772275860283,-216.22419308,0.00049315,120]
[406922079,1772275860293,-500.0,0.00049315,120]
[406922081,1772275860303,-500.0,0.00049315,120]
[406922083,1772275860313,-500.0,0.00049315,120]
[406922085,1772275860322,-157.90438646,0.00049315,120]
[406922087,1772275860332,-500.0,0.00049315,120]
[406922089,1772275860343,-500.0,0.00049315,120]
[406922091,1772275860352,-500.0,0.00049315,120]
[406922093,1772275860362,-500.0,0.00049315,120]
[406922095,1772275860371,-564.99229793,0.00049315,120]
[406922097,1772275860381,-500.0,0.00049315,120]
[406922099,1772275860392,-500.0,0.00049315,120]
[406922101,1772275860402,-177.0,0.00049315,120]
[406922103,1772275860411,-545.29775396,0.00049315,120]
[406922105,1772275860421,-500.0,0.00049315,120]
[406922107,1772275860431,-528.54231051,0.00049315,120]
[406922109,1772275860442,-500.0,0.00049315,120]
[406922111,1772275860451,-511.00636403,0.00049315,120]
[406922113,1772275860462,-6036.61,0.00049315,7]
[406922115,1772275860472,-6036.61,0.00049315,7]
[406922117,1772275860481,-6036.61,0.00049315,7]
[406922119,1772275860490,-6036.61,0.00049315,7]
[406922121,1772275860501,-6036.61,0.00049315,7]
[406922123,1772275860511,-6036.61,0.00049315,7]
[406922125,1772275860520,-6036.61,0.00049315,7]
[406922127,1772275860529,-6036.61,0.00049315,7]
[406922128,1772275860539,-6036.61,0.00049315,7]
[406922130,1772275860549,-6036.61,0.00049315,7]
[406922132,1772275860558,-6036.61,0.00049315,7]
[406922134,1772275860567,-6036.61,0.00049315,7]
[406922136,1772275860576,-6036.61,0.00049315,7]
[406922138,1772275860585,-6036.61,0.00049315,7]
[406922140,1772275860595,-6036.61,0.00049315,7]
[406922142,1772275860604,-6036.61,0.00049315,7]
[406922144,1772275860614,-6036.61,0.00049315,7]
[406922146,1772275860622,-6036.61,0.00049315,7]
[406922148,1772275860631,-6036.61,0.00049315,7]
[406922150,1772275860640,-6036.61,0.00049315,7]
[406922151,1772275860649,-6036.61,0.00049315,7]
[406922153,1772275860659,-6036.61,0.00049315,7]
[406922155,1772275860668,-6036.61,0.00049315,7]
[406922157,1772275860678,-63.39306146,0.00049315,7]
[406923322,1772277031738,-1000.0,0.00011,2]
[406923323,1772277031747,-133.97176916,0.00011,2]
[406923324,1772277031896,-106.02823084,0.00011,2]
[406923325,1772277031906,-500.0,0.0001105,2]
[406923326,1772277031916,-774.06614995,0.000111,2]
[406923327,1772277031927,-387.11639996,0.000111,2]
[406923328,1772277031939,-1338.81745009,0.000111,2]
[406923329,1772277031948,-1200.0,0.00011196,2]
[406923331,1772277031957,-360.14751061,0.00011197,2]
[406923333,1772277031971,-139.85248939,0.00011197,2]
[406923335,1772277031980,-500.0,0.00011197,2]
[406923337,1772277031989,-500.0,0.00011197,2]
[406923339,1772277031997,-67.98841085,0.000112,2]
[406923341,1772277032011,-932.01158915,0.000112,2]
[406923343,1772277032021,-1000.0,0.0001129,2]
[406923345,1772277032031,-161.24,0.00011325,2]
[406923347,1772277032040,-300.0,0.00011342,2]
[406923349,1772277032050,-406.18701956,0.00011343,2]
[406923351,1772277032061,-795.683759,0.00011343,2]
[406923353,1772277032072,-404.57355337,0.00011343,2]
[406923354,1772277032083,-893.55566807,0.00011343,2]
[406923355,1772277032094,-2002.48502589,0.00011343,2]
[406923356,1772277032103,-1000.0,0.000115,2]
[406923357,1772277032114,-821.8,0.00011507,2]
[406923358,1772277032123,-150.0,0.00011536,2]
[406923359,1772277032132,-166.66,0.00011788,2]
[406923360,1772277032142,-500.0,0.0001209,2]
[406923361,1772277032151,-300.0,0.000121,2]
[406923362,1772277032160,-393.92113194,0.000121,2]
[406923364,1772277037759,-2106.07886806,0.000121,2]
[406923365,1772277037770,-4740.73550244,0.000121,2]
[406923366,1772277037780,-250.0,0.000121,2]
[406923367,1772277037790,-146.86530249,0.000121,2]
[406923368,1772277037802,-353.13469751,0.000121,2]
[406923369,1772277037812,-59.87244176,0.000121,2]
[406923370,1772277038027,-1345.54201185,0.000121,2]
[406923371,1772277038036,-150.0,0.00012112,2]
[406923372,1772277038046,-150.0,0.00012113,2]
[406923373,1772277038056,-150.320114,0.00012113,2]
[406923374,1772277038065,-150.640228,0.00012113,2]
[406923375,1772277038075,-150.960342,0.00012113,2]
[406923376,1772277038087,-151.280456,0.00012113,2]
[406923377,1772277038097,-151.600571,0.00012113,2]
[406923378,1772277038107,-151.920685,0.00012113,2]
[406923379,1772277038116,-152.240799,0.00012113,2]
[406923380,1772277038125,-152.560913,0.00012113,2]
[406923381,1772277038135,-152.881028,0.00012113,2]
[406923382,1772277038144,-166.66,0.00012177,2]
[406923383,1772277038153,-1680.0,0.00012316,2]
[406923384,1772277038163,-294.50570148,0.00012389,2]
[406923385,1772277038172,-2061.09684326,0.00012399,2]
[406923386,1772277038184,-693.06092471,0.00012399,2]
[406923387,1772277038195,-1401.9124575,0.00012399,2]
[406923388,1772277038205,-1000.18778537,0.00012399,2]
[406923389,1772277038216,-865.69,0.00012399,2]
[406923390,1772277038227,-671.07308538,0.00012399,2]
[406923391,1772277038238,-896.40182499,0.00012399,2]
[406923392,1772277038249,-1992410.57707879,0.00012399,2]
[406923393,1772277038258,-4515.04208243,0.00012399,2]
[406923394,1772277038267,-8327.76231047,0.000124,2]
[406923395,1772277038276,-89546.4512,0.000124,2]
[406923396,1772277038286,-2500.0,0.000124,2]
[406923397,1772277038295,-329.312,0.0001249,2]
[406923398,1772277038304,-1555.75,0.0001249,2]
[406923399,1772277038313,-150.99,0.0001249,2]
[406923400,1772277038323,-999.99,0.0001249,2]
[406923401,1772277038332,-299.99,0.0001249,2]
[406923402,1772277038341,-150.99,0.0001249,2]
[406923404,1772277038350,-9999.99,0.00012498,2]
[406923406,1772277038359,-9496.32,0.00012498,2]
[406923407,1772277038368,-500.0,0.00012499,2]
[406923410,1772277038380,-590.38354289,0.00012499,2]
[406923411,1772277038389,-500.0,0.00012499,2]
[406923413,1772277038401,-500.0,0.00012499,2]
[406923415,1772277038410,-500.0,0.00012499,2]
[406923418,1772277038419,-500.0,0.00012499,2]
[406923420,1772277038428,-500.0,0.00012499,2]
[406923422,1772277038437,-305.58220724,0.00012499,2]
[406923424,1772277038446,-2958.65237322,0.00012499,2]
[406923426,1772277038455,-2958.65237322,0.00012499,2]
[406923428,1772277038465,-2958.65237322,0.00012499,2]
[406923430,1772277038474,-2958.65237322,0.00012499,2]
[406923432,1772277038483,-2958.65237322,0.00012499,2]
[406923434,1772277038493,-2958.65237322,0.00012499,2]
[406923436,1772277038502,-2958.65237322,0.00012499,2]
[406923438,1772277038511,-2958.65237322,0.00012499,2]
[406923440,1772277038520,-2958.65237322,0.00012499,2]
[406923442,1772277038528,-2958.65237322,0.00012499,2]
[406923444,1772277038538,-2958.65237322,0.00012499,2]
[406923446,1772277038547,-2958.65237322,0.00012499,2]
[406923449,1772277038558,-2958.65237322,0.00012499,2]
[406923451,1772277038568,-2958.65237322,0.00012499,2]
[406923452,1772277038577,-2958.65237322,0.00012499,2]
[406923454,1772277038586,-2958.65237322,0.00012499,2]
[406923456,1772277038596,-2958.65237322,0.00012499,2]
[406923458,1772277038605,-2958.65237322,0.00012499,2]
[406923460,1772277038615,-2958.65237322,0.00012499,2]
[406923463,1772277038625,-2958.65237322,0.00012499,2]
[406923464,1772277038635,-2958.65237322,0.00012499,2]
[406923466,1772277038645,-2958.65237322,0.00012499,2]
[406923468,1772277038654,-2958.65237322,0.00012499,2]
[406923471,1772277038664,-2958.65237322,0.00012499,2]
[406923473,1772277038673,-2958.65237322,0.00012499,2]
[406923475,1772277038683,-2958.65237322,0.00012499,2]
[406923477,1772277038692,-2958.65237322,0.00012499,2]
[406923479,1772277038701,-2958.65237322,0.00012499,2]
[406923480,1772277038711,-2958.65237322,0.00012499,2]
[406923482,1772277038721,-2958.65237322,0.00012499,2]
[406923483,1772277038730,-1453.65419887,0.00012499,2]
[406923485,1772277039925,-1504.99817435,0.00012499,2]
[406923487,1772277039934,-2958.65237322,0.00012499,2]
[406923488,1772277039944,-1544.85260768,0.00012499,2]
[406923490,1772277040392,-767.92163093,0.00012499,2]
[406923507,1772277042899,-645.87813461,0.00012499,2]
[406923508,1772277042908,-2958.65237322,0.00012499,2]
[406923509,1772277042917,-2958.65237322,0.00012499,2]
[406923510,1772277042926,-2958.65237322,0.00012499,2]
[406923511,1772277042936,-2958.65237322,0.00012499,2]
[406923512,1772277042945,-2958.65237322,0.00012499,2]
[406923513,1772277042954,-707.22300183,0.00012499,2]
[406923514,1772277042990,-144.28451918,0.00012499,2]
[406924011,1772278231897,-200.0,0.00011378,2]
[406924012,1772278231908,-243.0,0.00011378,2]
[406924013,1772278231918,-244.16138692,0.00011379,2]
[406924014,1772278231931,-255.83861308,0.00011379,2]
[406924015,1772278231943,-1151.16864426,0.00011402,2]
[406924016,1772278231956,-701.25135574,0.00011402,2]
[406924017,1772278231967,-4000.0,0.0001172,2]
[406924018,1772278231977,-196.33713432,0.0001196,2]
[406924019,1772278231987,-300.0,0.00011969,2]
[406924020,1772278231998,-1062.90563234,0.00011969,2]
[406924021,1772278232010,-137.09436766,0.00011969,2]
[406924022,1772278232021,-150.0,0.00011969,2]
[406924023,1772278232031,-34.46545469,0.0001197,2]
[406924024,1772278232044,-2256.41771873,0.0001197,2]
[406924025,1772278232055,-260.28572646,0.0001197,2]
[406924026,1772278232068,-22081.03141269,0.0001197,2]
[406924029,1772278232080,-6779.46985046,0.0001197,2]
[406924031,1772278232092,-784.32744492,0.0001197,2]
[406924032,1772278232109,-892.41530223,0.0001197,2]
[406924033,1772278232121,-1634.00894998,0.0001197,2]
[406924036,1772278232133,-1286.0085527,0.0001197,2]
[406924038,1772278232145,-492.21212702,0.0001197,2]
[406924041,1772278232162,-347.43508066,0.0001197,2]
[406924043,1772278232174,-1295.21988168,0.0001197,2]
[406924079,1772278238202,-449.3404125,0.0001197,2]
[406924080,1772278238213,-780.00000001,0.0001197,2]
[406924081,1772278238224,-5172.14733637,0.0001197,2]
[406924082,1772278238256,-735.44834031,0.0001197,2]
[406924083,1772278238267,-3059.22637876,0.0001197,2]
[406924084,1772278238366,-1951660.54002983,0.0001197,2]
[406924085,1772278238376,-4000.0,0.00012013,2]
[406924086,1772278238385,-150.0,0.00012024,2]
[406924087,1772278238397,-9999.99,0.00012069,2]
[406924088,1772278238406,-299.99,0.00012069,2]
[406924089,1772278238416,-150.99,0.00012069,2]
[406924090,1772278238425,-253.2864,0.0001207,2]
[406924091,1772278238435,-150.99,0.0001207,2]
[406924092,1772278238448,-9496.32,0.0001207,2]
[406924093,1772278238457,-999.99,0.0001207,2]
[406924094,1772278238467,-150.0,0.00012079,2]
[406924095,1772278238476,-56299.74018492,0.00012099,2]
[406924102,1772278240117,-500.0,0.00012099,2]
[406924103,1772278240130,-522.3827985,0.00012099,2]
[406924104,1772278240331,-383.41738006,0.00012099,2]
[406924105,1772278240545,-286.25291424,0.00012099,2]
[406924106,1772278240561,-3897.78383234,0.00012099,2]
[406924107,1772278240573,-523.34287504,0.00012099,2]
[406924148,1772278243200,-14478.83920229,0.00012099,2]
[406924149,1772278243212,-2082.54561959,0.00012099,2]
[406924150,1772278244051,-13059.48590554,0.00012099,2]
[406924326,1772278245937,-57570.09494732,0.00012099,2]
[406924333,1772278245996,-3210.94884447,0.00012099,2]
[406924540,1772278540085,-150.0,8.002e-05,2]
[406924541,1772278540111,-300.0,8.002e-05,2]
[406924542,1772278540136,-50.0,8.002e-05,2]
[406924543,1772278541230,-500.0,8.002e-05,2]
[406924544,1772278541311,-239.1632861,8.002e-05,2]
[406924545,1772278541399,-410.8367139,8.002e-05,2]
[406924546,1772278541423,-72.8955016,8.002e-05,2]
[406924548,1772278848711,203.91,0.0001,10]
[406924549,1772279369098,-217.0,8.002e-05,2]
[406924550,1772279369119,-300.0,8.002e-05,2]
[406924551,1772279369140,-1200.0,8.002e-05,2]
[406924552,1772279369162,-150.0,8.002e-05,2]
[406924553,1772279369181,-500.57995792,8.003e-05,2]
[406924554,1772279369202,-500.29803551,8.003e-05,2]
[406924555,1772279369222,-500.18166669,8.003e-05,2]
[406924556,1772279369242,-167.04264205,8.003e-05,2]
[406924557,1772279369262,-500.0,8.003e-05,2]
[406924558,1772279369281,-500.18606995,8.003e-05,2]
[406924559,1772279369301,-610.55972537,8.003e-05,2]
[406924560,1772279369321,-299.70741651,8.003e-05,2]
[406924561,1772279432001,-1200.0,8.002e-05,2]
[406924562,1772279432011,-300.0,8.002e-05,2]
[406924563,1772279432021,-250.0,8.002e-05,2]
[406924564,1772279432030,-200.46784063,8.003e-05,2]
[406924565,1772279432040,-500.93369528,8.003e-05,2]
[406924566,1772279432049,-500.18134238,8.003e-05,2]
[406924567,1772279432059,-500.75663163,8.003e-05,2]
[406924568,1772279432068,-500.23170611,8.003e-05,2]
[406924569,1772279432078,-164.80000199,8.003e-05,2]
[406924570,1772279432087,-500.12663043,8.003e-05,2]
[406924571,1772279432097,-165.42780585,8.003e-05,2]
[406924572,1772279432106,-500.0,8.003e-05,2]
[406924573,1772279432115,-501.10602996,8.003e-05,2]
[406924574,1772279432125,-500.22029316,8.003e-05,2]
[406924575,1772279432135,-501.08752004,8.003e-05,2]
[406924576,1772279432148,-172.11252677,8.003e-05,2]
[406924577,1772279432161,-328.39793471,8.003e-05,2]
[406924578,1772279432170,-500.95701525,8.003e-05,2]
[406924579,1772279432179,-503.65630959,8.003e-05,2]
[406924580,1772279432187,-500.0,8.003e-05,2]
[406924581,1772279432196,-384.74874007,8.003e-05,2]
[406924582,1772279432206,-500.49462905,8.003e-05,2]
[406924584,1772279432215,-500.0,8.003e-05,2]
[406924586,1772279432224,-500.78794822,8.003e-05,2]
[406924587,1772279432234,-588.93145599,8.003e-05,2]
[406924589,1772279432243,-240.05255331,8.003e-05,2]
[406924591,1772279432253,-500.35476921,8.003e-05,2]
[406924593,1772279432262,-500.65480064,8.003e-05,2]
[406924594,1772279432272,-500.0,8.003e-05,2]
[406924596,1772279432282,-500.82940591,8.003e-05,2]
[406924598,1772279432292,-217.0,8.003e-05,2]
[406924599,1772279432301,-304.12596972,8.363e-05,2]
[406924600,1772279432310,-255.0,8.802e-05,2]
[406924601,1772279432320,-1680.0,8.802e-05,2]
[406924602,1772279432329,-420.0,8.802e-05,2]
[406924603,1772279432342,-3620.65873454,8.802e-05,2]
[406924604,1772279432352,-250.0,8.802e-05,2]
[406924605,1772279432363,-48870.93540276,9.007e-05,2]
[406924606,1772279432373,-250.0,9.418e-05,2]
[406924607,1772279432383,-433.0,9.682e-05,2]
[406924608,1772279432393,-2351.0,9.682e-05,2]
[406924609,1772279432403,-587.0,9.682e-05,2]
[406924610,1772279432412,-225.98064,9.723e-05,2]
[406924611,1772279432421,-500.0,9.934e-05,2]
[406924612,1772279432431,-198.0,9.982e-05,2]
[406924613,1772279432441,-417.0,0.0001,2]
[406924614,1772279432450,-28800.1100199,0.00010234,2]
[406924615,1772279432460,-5997.0029,0.00010438,2]
[406924616,1772279432469,-1500.0,0.00010442,2]
[406924617,1772279432479,-500.0,0.00010459,2]
[406924618,1772279432489,-500.0,0.00010459,2]
[406924619,1772279432499,-500.0,0.00010459,2]
[406924620,1772279432508,-500.0,0.00010459,2]
[406924621,1772279432517,-500.0,0.00010459,2]
[406924622,1772279432527,-500.0,0.00010459,2]
[406924623,1772279432538,-500.0,0.00010459,2]
[406924624,1772279432548,-500.0,0.00010459,2]
[406924625,1772279432557,-500.0,0.00010459,2]
[406924626,1772279432567,-500.0,0.00010459,2]
[406924627,1772279432577,-500.0,0.00010459,2]
[406924628,1772279432586,-500.0,0.00010459,2]
[406924629,1772279432596,-151.0,0.00010459,2]
[406924630,1772279432606,-151.0,0.00010459,2]
[406924631,1772279432615,-151.0,0.00010459,2]
[406924632,1772279432625,-500.0,0.00010459,2]
[406924633,1772279432634,-252.6934553,0.00010459,2]
[406924634,1772279432644,-151.0,0.00010459,2]
[406924635,1772279432654,-500.0,0.00010459,2]
[406924636,1772279432663,-151.0,0.00010459,2]
[406924637,1772279432673,-500.0,0.00010459,2]
[406924638,1772279432683,-500.0,0.00010459,2]
[406924639,1772279432696,-205.31432162,0.00010459,2]
[406924640,1772279432707,-151.0,0.00010459,2]
[406924641,1772279432716,-500.0,0.00010459,2]
[406924642,1772279432726,-151.0,0.00010459,2]
[406924643,1772279432738,-500.0,0.00010459,2]
[406924644,1772279432747,-500.0,0.00010459,2]
[406924645,1772279432757,-151.0,0.00010459,2]
[406924646,1772279432767,-500.0,0.00010459,2]
[406924647,1772279432777,-151.0,0.00010459,2]
[406924648,1772279432786,-500.0,0.00010459,2]
[406924649,1772279432796,-151.0,0.00010459,2]
[406924650,1772279432805,-500.0,0.00010459,2]
[406924651,1772279432814,-151.0,0.00010459,2]
[406924652,1772279432825,-500.0,0.00010459,2]
[406924653,1772279432834,-151.0,0.00010459,2]
[406924654,1772279432843,-500.0,0.00010459,2]
[406924655,1772279432853,-151.0,0.00010459,2]
[406924656,1772279432862,-500.0,0.00010459,2]
[406924657,1772279432871,-151.0,0.00010459,2]
[406924658,1772279432880,-151.0,0.00010459,2]
[406924659,1772279432890,-175.0,0.00010465,2]
[406924660,1772279432899,-9496.32,0.00010465,2]
[406924661,1772279432908,-150.99,0.00010465,2]
[406924662,1772279432925,-487.84,0.00010465,2]
[406924663,1772279432936,-299.99,0.00010465,2]
[406924664,1772279432946,-999.99,0.00010465,2]
[406924665,1772279432955,-61064.41,0.00010465,2]
[406924666,1772279432965,-150.99,0.00010465,2]
[406924667,1772279432974,-311.82,0.00010465,2]
[406924668,1772279432983,-9999.99,0.00010465,2]
[406924669,1772279432993,-7436.16582895,0.00010465,2]
[406924670,1772279433007,-2479.9550775,0.00010465,2]
[406924671,1772279433018,-83.86909355,0.00010465,2]
[406924672,1772279433027,-7143.56,0.00010465,2]
[406924673,1772279433036,-1474.84,0.00010465,2]
[406924674,1772279433046,-242.2546032,0.00010479,2]
[406924675,1772279433056,-150.0,0.0001055,2]